[Event "*** Titled Tuesday Blitz"]
[Site "Chess.com"]
[Date "2018.06.05"]
[Round "7"]
[White "Angulo07"]
[Black "kleinebeer98"]
[Result "0-1"]
[WhiteElo "2411"]
[BlackElo "2489"]
[TimeControl "180+2"]
[EndTime "14:45:24 PDT"]
[Termination "kleinebeer98 won by checkmate"]

1. d4 {[%clk 0:02:59.6]} 1... Nf6 {[%clk 0:03:00.6]} 2. Bg5 {[%clk 0:03:00.4]}
2... c6 {[%clk 0:02:45.3]} 3. Nd2 {[%clk 0:02:57.7]} 3... d5 {[%clk 0:02:44.6]}
4. Ngf3 {[%clk 0:02:55.5]} 4... Nbd7 {[%clk 0:02:44.2]} 5. b3 {[%clk 0:02:52.9]}
5... g6 {[%clk 0:02:43.3]} 6. e3 {[%clk 0:02:46.3]} 6... Bg7 {[%clk 0:02:44.1]}
7. Bd3 {[%clk 0:02:44.5]} 7... O-O {[%clk 0:02:41.7]} 8. O-O {[%clk 0:02:42.9]}
8... a5 {[%clk 0:02:43.2]} 9. h3 {[%clk 0:02:41.6]} 9... a4 {[%clk 0:02:38.7]}
10. c4 {[%clk 0:02:40.3]} 10... Qa5 {[%clk 0:02:32.9]} 11. cxd5 {[%clk 0:02:37]}
11... cxd5 {[%clk 0:02:28.9]} 12. Rc1 {[%clk 0:02:27.1]} 12... b5 {[%clk
0:02:14.8]} 13. bxa4 {[%clk 0:02:21.8]} 13... bxa4 {[%clk 0:02:13.6]} 14. Qe2
{[%clk 0:02:20.7]} 14... h6 {[%clk 0:01:56.5]} 15. Bf4 {[%clk 0:02:18.7]} 15...
Ba6 {[%clk 0:01:31.3]} 16. Rc6 {[%clk 0:02:19.3]} 16... Bxd3 {[%clk 0:01:29.1]}
17. Qxd3 {[%clk 0:02:20.4]} 17... Rfc8 {[%clk 0:01:25.9]} 18. Rfc1 {[%clk
0:02:21.4]} 18... Rxc6 {[%clk 0:01:20.6]} 19. Rxc6 {[%clk 0:02:23.3]} 19... Qb4
{[%clk 0:01:14.1]} 20. Qc2 {[%clk 0:02:13.5]} 20... Kh7 {[%clk 0:01:10.7]} 21.
Rc7 {[%clk 0:02:11.9]} 21... a3 {[%clk 0:01:06.9]} 22. Nb3 {[%clk 0:02:09.6]}
22... Nf8 {[%clk 0:00:58.6]} 23. Qc5 {[%clk 0:02:03.6]} 23... Qxb3 {[%clk
0:00:46.7]} 24. axb3 {[%clk 0:01:39]} 24... a2 {[%clk 0:00:48.6]} 25. Ra7 {[%clk
0:01:40.2]} 25... a1=R+ {[%clk 0:00:47.8]} 26. Rxa1 {[%clk 0:01:39.6]} 26...
Rxa1+ {[%clk 0:00:49.7]} 27. Kh2 {[%clk 0:01:36.2]} 27... e6 {[%clk 0:00:28.8]}
28. b4 {[%clk 0:01:31]} 28... Ne4 {[%clk 0:00:26.6]} 29. Qc2 {[%clk 0:01:28.8]}
29... Nd7 {[%clk 0:00:22.5]} 30. b5 {[%clk 0:01:27.7]} 30... Nb6 {[%clk
0:00:21.4]} 31. Bc7 {[%clk 0:01:25.4]} 31... Nc4 {[%clk 0:00:20.2]} 32. b6
{[%clk 0:01:23.9]} 32... Rf1 {[%clk 0:00:03.7]} 33. b7 {[%clk 0:01:19.8]} 33...
Nxf2 {[%clk 0:00:05.1]} 34. Qxf2 {[%clk 0:00:57.2]} 34... Rxf2 {[%clk 0:00:07]}
35. b8=Q {[%clk 0:00:58.7]} 35... Nxe3 {[%clk 0:00:08.1]} 36. Qb3 {[%clk
0:00:45.7]} 36... Rxg2+ {[%clk 0:00:08.2]} 37. Kh1 {[%clk 0:00:44.5]} 37... Re2
{[%clk 0:00:09]} 38. Ng1 {[%clk 0:00:39.3]} 38... Re1 {[%clk 0:00:09.1]} 39. Bg3
{[%clk 0:00:39]} 39... Rxg1+ {[%clk 0:00:05.9]} 40. Kxg1 {[%clk 0:00:38.9]}
40... Nf5 {[%clk 0:00:07.4]} 41. Be5 {[%clk 0:00:38.8]} 41... Nxd4 {[%clk
0:00:07.9]} 42. Bxd4 {[%clk 0:00:36.2]} 42... Bxd4+ {[%clk 0:00:09.8]} 43. Kg2
{[%clk 0:00:37.8]} 43... Kg7 {[%clk 0:00:10.9]} 44. Kf3 {[%clk 0:00:36.8]} 44...
Be5 {[%clk 0:00:09.9]} 45. h4 {[%clk 0:00:19.2]} 45... h5 {[%clk 0:00:10.1]} 46.
Qb7 {[%clk 0:00:18]} 46... Bf6 {[%clk 0:00:11.1]} 47. Kg3 {[%clk 0:00:18.4]}
47... Be5+ {[%clk 0:00:12.3]} 48. Kf3 {[%clk 0:00:19.2]} 48... Bf6 {[%clk
0:00:14.2]} 49. Qb4 {[%clk 0:00:19.8]} 49... Be5 {[%clk 0:00:14.7]} 50. Ke3
{[%clk 0:00:20.1]} 50... Bf6 {[%clk 0:00:14.2]} 51. Qf4 {[%clk 0:00:21.2]} 51...
Bd8 {[%clk 0:00:12.7]} 52. Qd6 {[%clk 0:00:21]} 52... Bxh4 {[%clk 0:00:12.4]}
53. Qe5+ {[%clk 0:00:21.6]} 53... Bf6 {[%clk 0:00:13.4]} 54. Qc7 {[%clk
0:00:22.4]} 54... h4 {[%clk 0:00:13.2]} 55. Kf3 {[%clk 0:00:23.7]} 55... Bg5
{[%clk 0:00:11.9]} 56. Qd7 {[%clk 0:00:24.8]} 56... Bf6 {[%clk 0:00:11.6]} 57.
Kg4 {[%clk 0:00:26.2]} 57... g5 {[%clk 0:00:08.7]} 58. Qa4 {[%clk 0:00:21.8]}
58... Be7 {[%clk 0:00:08]} 59. Qa1+ {[%clk 0:00:20.8]} 59... Kg6 {[%clk
0:00:08.5]} 60. Qb1+ {[%clk 0:00:21.4]} 60... f5+ {[%clk 0:00:09.7]} 61. Kf3
{[%clk 0:00:21.9]} 61... g4+ {[%clk 0:00:11.6]} 62. Kg2 {[%clk 0:00:22.4]} 62...
h3+ {[%clk 0:00:11.8]} 63. Kg3 {[%clk 0:00:21.4]} 63... Bd6+ {[%clk 0:00:13]}
64. Kh4 {[%clk 0:00:22.5]} 64... Be7+ {[%clk 0:00:14]} 65. Kg3 {[%clk
0:00:23.4]} 65... Bf6 {[%clk 0:00:08.1]} 66. Qd3 {[%clk 0:00:23.4]} 66... Be5+
{[%clk 0:00:05.9]} 67. Kh4 {[%clk 0:00:24.7]} 67... h2 {[%clk 0:00:07.3]} 68.
Qf1 {[%clk 0:00:23.4]} 68... d4 {[%clk 0:00:08.7]} 69. Qc1 {[%clk 0:00:21.8]}
69... Bf6+ {[%clk 0:00:07.7]} 70. Kg3 {[%clk 0:00:21.8]} 70... Be5+ {[%clk
0:00:09.6]} 71. Kh4 {[%clk 0:00:22.8]} 71... d3 {[%clk 0:00:09.5]} 72. Qg5+
{[%clk 0:00:18.3]} 72... Kf7 {[%clk 0:00:10.8]} 73. Qh5+ {[%clk 0:00:17.9]}
73... Ke7 {[%clk 0:00:11.7]} 74. Qh7+ {[%clk 0:00:18.9]} 74... Kd6 {[%clk
0:00:13.1]} 75. Kg5 {[%clk 0:00:18.4]} 75... d2 {[%clk 0:00:13.9]} 76. Qg8
{[%clk 0:00:14.2]} 76... h1=Q {[%clk 0:00:13.5]} 77. Qd8+ {[%clk 0:00:14.8]}
77... Kc5 {[%clk 0:00:14.9]} 78. Qxd2 {[%clk 0:00:15.6]} 78... Qe4 {[%clk
0:00:14.7]} 79. Qc1+ {[%clk 0:00:14.9]} 79... Qc4 {[%clk 0:00:15.6]} 80. Qg1+
{[%clk 0:00:15.2]} 80... Bd4 {[%clk 0:00:16.2]} 81. Qh2 {[%clk 0:00:14.8]} 81...
Qc1+ {[%clk 0:00:15.8]} 82. Kg6 {[%clk 0:00:14.7]} 82... e5 {[%clk 0:00:13.9]}
83. Qa2 {[%clk 0:00:14.9]} 83... Qc4 {[%clk 0:00:12.6]} 84. Qa7+ {[%clk
0:00:12.2]} 84... Kd5 {[%clk 0:00:13]} 85. Qf7+ {[%clk 0:00:12.8]} 85... Kc5
{[%clk 0:00:13.8]} 86. Qxf5 {[%clk 0:00:14]} 86... Qg8+ {[%clk 0:00:11.5]} 87.
Kh5 {[%clk 0:00:12.6]} 87... g3 {[%clk 0:00:12.8]} 88. Qc2+ {[%clk 0:00:12.3]}
88... Qc4 {[%clk 0:00:14.1]} 89. Qg6 {[%clk 0:00:12.9]} 89... Qe2+ {[%clk
0:00:13.7]} 90. Kh4 {[%clk 0:00:13.4]} 90... g2 {[%clk 0:00:14.4]} 91. Qc2+
{[%clk 0:00:09.1]} 91... Qxc2 {[%clk 0:00:12.9]} 92. Kh3 {[%clk 0:00:11]} 92...
Qf2 {[%clk 0:00:12.9]} 93. Kh2 {[%clk 0:00:09.1]} 93... g1=R+ {[%clk 0:00:09.6]}
94. Kh3 {[%clk 0:00:10.9]} 94... Qg3# {[%clk 0:00:09.9]} 0-1

[Event "*** Titled Tuesday Blitz"]
[Site "Chess.com"]
[Date "2018.06.05"]
[Round "8"]
[White "ChainsOfFantasia"]
[Black "lucasmito"]
[Result "0-1"]
[WhiteElo "2385"]
[BlackElo "2325"]
[TimeControl "180+2"]
[EndTime "14:50:49 PDT"]
[Termination "lucasmito won by checkmate"]

1. e4 {[%clk 0:03:01.9]} 1... e5 {[%clk 0:03:00.1]} 2. Nf3 {[%clk 0:03:02.1]}
2... Nc6 {[%clk 0:03:00.5]} 3. Bb5 {[%clk 0:03:02.1]} 3... f5 {[%clk 0:03:01.6]}
4. d3 {[%clk 0:03:01.3]} 4... fxe4 {[%clk 0:03:02.6]} 5. dxe4 {[%clk 0:03:01.2]}
5... Nf6 {[%clk 0:03:04.5]} 6. Nc3 {[%clk 0:03:01.9]} 6... Bb4 {[%clk
0:03:04.8]} 7. O-O {[%clk 0:03:02.2]} 7... Bxc3 {[%clk 0:03:06.7]} 8. bxc3
{[%clk 0:03:03.6]} 8... d6 {[%clk 0:03:08.2]} 9. Bg5 {[%clk 0:03:03.2]} 9... O-O
{[%clk 0:03:09.3]} 10. Qd3 {[%clk 0:03:00.9]} 10... Qe8 {[%clk 0:03:10.1]} 11.
Rab1 {[%clk 0:03:00.1]} 11... Kh8 {[%clk 0:03:04.8]} 12. Nd2 {[%clk 0:03:00.1]}
12... Nh5 {[%clk 0:03:04]} 13. Nc4 {[%clk 0:02:58.6]} 13... Qg6 {[%clk
0:02:59.5]} 14. Bh4 {[%clk 0:02:58.2]} 14... Nf4 {[%clk 0:02:58.4]} 15. Qe3
{[%clk 0:02:51]} 15... Qxg2# {[%clk 0:01:24.5]} 0-1

[Event "*** Titled Tuesday Blitz"]
[Site "Chess.com"]
[Date "2018.06.05"]
[Round "8"]
[White "PaulfromSPb"]
[Black "aa175"]
[Result "0-1"]
[WhiteElo "2409"]
[BlackElo "1906"]
[TimeControl "180+2"]
[EndTime "14:52:11 PDT"]
[Termination "aa175 won by checkmate"]

1. e4 {[%clk 0:03:01.9]} 1... e5 {[%clk 0:02:59.8]} 2. Nf3 {[%clk 0:03:02.6]}
2... Nc6 {[%clk 0:03:00.8]} 3. Bc4 {[%clk 0:03:03.4]} 3... Bc5 {[%clk
0:03:01.6]} 4. O-O {[%clk 0:03:03.2]} 4... d6 {[%clk 0:03:03.1]} 5. c3 {[%clk
0:03:04.1]} 5... Nf6 {[%clk 0:03:04.6]} 6. d4 {[%clk 0:03:04.6]} 6... Bb6 {[%clk
0:03:02.5]} 7. Bg5 {[%clk 0:03:00.1]} 7... h6 {[%clk 0:03:00.9]} 8. dxe5 {[%clk
0:02:58.2]} 8... hxg5 {[%clk 0:02:49.1]} 9. exf6 {[%clk 0:02:58.8]} 9... Qxf6
{[%clk 0:02:47.9]} 10. e5 {[%clk 0:02:54]} 10... Nxe5 {[%clk 0:02:30.1]} 11.
Nxe5 {[%clk 0:02:54]} 11... dxe5 {[%clk 0:02:32]} 12. Nd2 {[%clk 0:02:54.7]}
12... g4 {[%clk 0:02:18.5]} 13. Ne4 {[%clk 0:02:49.4]} 13... Qh4 {[%clk
0:02:11.6]} 14. h3 {[%clk 0:02:48.1]} 14... gxh3 {[%clk 0:02:13.5]} 15. Qf3
{[%clk 0:02:43.6]} 15... f6 {[%clk 0:02:02.6]} 16. g3 {[%clk 0:02:37]} 16... Bg4
{[%clk 0:01:31.5]} 17. Nd6+ {[%clk 0:02:22]} 17... cxd6 {[%clk 0:00:49.3]} 18.
Qxb7 {[%clk 0:02:22.3]} 18... Qxg3+ {[%clk 0:00:49.2]} 19. Kh1 {[%clk
0:02:23.3]} 19... Bf3+ {[%clk 0:00:50]} 20. Qxf3 {[%clk 0:02:21.9]} 20... Qxf3+
{[%clk 0:00:51.9]} 21. Kh2 {[%clk 0:02:22.9]} 21... Qg2# {[%clk 0:00:53.8]} 0-1

[Event "*** Titled Tuesday Blitz"]
[Site "Chess.com"]
[Date "2018.06.05"]
[Round "8"]
[White "Karina_Oparina"]
[Black "Vusatiuk_Vladimir"]
[Result "1-0"]
[WhiteElo "2195"]
[BlackElo "2168"]
[TimeControl "180+2"]
[EndTime "14:52:13 PDT"]
[Termination "Karina_Oparina won by resignation"]

1. Nf3 {[%clk 0:02:57.1]} 1... d5 {[%clk 0:03:00.1]} 2. g3 {[%clk 0:02:57.5]}
2... Nf6 {[%clk 0:03:01.2]} 3. Bg2 {[%clk 0:02:57.2]} 3... Bg4 {[%clk
0:03:02.5]} 4. O-O {[%clk 0:02:57.2]} 4... Nbd7 {[%clk 0:03:03.2]} 5. h3 {[%clk
0:02:57.9]} 5... Bh5 {[%clk 0:03:03.1]} 6. d4 {[%clk 0:02:57.4]} 6... e6 {[%clk
0:03:02.2]} 7. c4 {[%clk 0:02:57.1]} 7... c5 {[%clk 0:03:02.7]} 8. cxd5 {[%clk
0:02:53.8]} 8... exd5 {[%clk 0:03:03.1]} 9. Nc3 {[%clk 0:02:54.2]} 9... Rc8
{[%clk 0:02:54.5]} 10. Bg5 {[%clk 0:02:51.6]} 10... Be7 {[%clk 0:02:54.4]} 11.
Ne5 {[%clk 0:02:47.6]} 11... cxd4 {[%clk 0:02:52.2]} 12. Qxd4 {[%clk 0:02:42]}
12... Nxe5 {[%clk 0:02:52.5]} 13. Qxe5 {[%clk 0:02:42.3]} 13... O-O {[%clk
0:02:53.1]} 14. Bxf6 {[%clk 0:02:25.7]} 14... Bxf6 {[%clk 0:02:53]} 15. Qxh5
{[%clk 0:02:25.9]} 15... d4 {[%clk 0:02:43.8]} 16. Ne4 {[%clk 0:02:22.3]} 16...
Be7 {[%clk 0:02:44.6]} 17. Rac1 {[%clk 0:02:20.7]} 17... f5 {[%clk 0:02:41.9]}
18. Nd2 {[%clk 0:02:13.8]} 18... Qa5 {[%clk 0:02:42.8]} 19. Nb3 {[%clk
0:01:56.2]} 19... Qxa2 {[%clk 0:02:42.7]} 20. Rxc8 {[%clk 0:01:56.3]} 20... Rxc8
{[%clk 0:02:42.5]} 21. Qxf5 {[%clk 0:01:54.2]} 21... Re8 {[%clk 0:02:39.9]} 22.
Qe6+ {[%clk 0:01:52.6]} 22... Kh8 {[%clk 0:02:38.6]} 23. Qf7 {[%clk 0:01:49.5]}
23... Rb8 {[%clk 0:02:36.9]} 24. Bd5 {[%clk 0:01:44.1]} 24... Bf6 {[%clk
0:02:34.9]} 25. Nxd4 {[%clk 0:01:35.5]} 25... Qxb2 {[%clk 0:02:34.7]} 26. Ne6
{[%clk 0:01:21.4]} 26... a5 {[%clk 0:02:33.2]} 27. Nf8 {[%clk 0:01:20.5]} 1-0

[Event "*** Titled Tuesday Blitz"]
[Site "Chess.com"]
[Date "2018.06.05"]
[Round "8"]
[White "GameOverBro"]
[Black "GMCanty"]
[Result "1-0"]
[WhiteElo "2379"]
[BlackElo "2198"]
[TimeControl "180+2"]
[EndTime "14:52:24 PDT"]
[Termination "GameOverBro won by resignation"]

1. e4 {[%clk 0:02:56.7]} 1... c5 {[%clk 0:02:57.8]} 2. Ne2 {[%clk 0:02:55.7]}
2... g6 {[%clk 0:02:57.7]} 3. d4 {[%clk 0:02:54.3]} 3... cxd4 {[%clk 0:02:59]}
4. Nxd4 {[%clk 0:02:54.7]} 4... Nc6 {[%clk 0:02:50.8]} 5. Nc3 {[%clk 0:02:51.5]}
5... Bg7 {[%clk 0:02:47.6]} 6. Nde2 {[%clk 0:02:51.4]} 6... d6 {[%clk
0:02:46.4]} 7. g3 {[%clk 0:02:51.6]} 7... Nf6 {[%clk 0:02:45.9]} 8. Bg2 {[%clk
0:02:49.5]} 8... O-O {[%clk 0:02:41.7]} 9. O-O {[%clk 0:02:49.1]} 9... Be6
{[%clk 0:02:31.8]} 10. a4 {[%clk 0:02:42.9]} 10... Rc8 {[%clk 0:02:29.3]} 11.
Nd5 {[%clk 0:02:43]} 11... Bxd5 {[%clk 0:02:02.8]} 12. exd5 {[%clk 0:02:41.8]}
12... Nb4 {[%clk 0:02:04]} 13. c3 {[%clk 0:02:40.3]} 13... Na6 {[%clk 0:02:01]}
14. Be3 {[%clk 0:02:39.2]} 14... b6 {[%clk 0:01:58.8]} 15. Bd4 {[%clk
0:02:35.4]} 15... Qd7 {[%clk 0:01:56.6]} 16. b3 {[%clk 0:02:33.1]} 16... Ng4
{[%clk 0:01:55.6]} 17. c4 {[%clk 0:02:30.9]} 17... Nc5 {[%clk 0:01:54.7]} 18. h3
{[%clk 0:02:30.6]} 18... Ne5 {[%clk 0:01:51.2]} 19. f4 {[%clk 0:02:30.6]} 19...
Ned3 {[%clk 0:01:48.3]} 20. Bxg7 {[%clk 0:02:30.3]} 20... Kxg7 {[%clk 0:01:50]}
21. Nd4 {[%clk 0:02:30.3]} 21... e5 {[%clk 0:01:47.1]} 22. Nc6 {[%clk
0:02:22.4]} 22... exf4 {[%clk 0:01:30.1]} 23. gxf4 {[%clk 0:02:22.9]} 23... Nxf4
{[%clk 0:01:29.1]} 24. Rxf4 {[%clk 0:01:59.5]} 1-0

[Event "*** Titled Tuesday Blitz"]
[Site "Chess.com"]
[Date "2018.06.05"]
[Round "8"]
[White "florianschwabeneder"]
[Black "nubair1198"]
[Result "0-1"]
[WhiteElo "2379"]
[BlackElo "2537"]
[TimeControl "180+2"]
[EndTime "14:52:25 PDT"]
[Termination "nubair1198 won by resignation"]

1. e4 {[%clk 0:03:01.9]} 1... c6 {[%clk 0:02:28.7]} 2. d4 {[%clk 0:02:59.6]}
2... d5 {[%clk 0:02:25.8]} 3. exd5 {[%clk 0:03:01.5]} 3... cxd5 {[%clk
0:02:27.7]} 4. Nf3 {[%clk 0:03:02.7]} 4... Nc6 {[%clk 0:02:27.3]} 5. Ne5 {[%clk
0:03:03.5]} 5... Nf6 {[%clk 0:02:26.8]} 6. Bb5 {[%clk 0:03:04]} 6... Bd7 {[%clk
0:02:28.1]} 7. Nxd7 {[%clk 0:03:05.2]} 7... Qxd7 {[%clk 0:02:30]} 8. c3 {[%clk
0:03:06.6]} 8... e6 {[%clk 0:02:30]} 9. O-O {[%clk 0:03:07.5]} 9... Bd6 {[%clk
0:02:31.4]} 10. Nd2 {[%clk 0:03:07.3]} 10... O-O {[%clk 0:02:32.4]} 11. Nf3
{[%clk 0:03:06]} 11... Ne4 {[%clk 0:02:33.3]} 12. g3 {[%clk 0:03:00.5]} 12... a6
{[%clk 0:02:26.3]} 13. Bd3 {[%clk 0:03:00.7]} 13... f5 {[%clk 0:02:26.9]} 14.
Nh4 {[%clk 0:02:59.5]} 14... Rf6 {[%clk 0:02:24.7]} 15. f3 {[%clk 0:02:54.1]}
15... Nxg3 {[%clk 0:02:00.2]} 16. hxg3 {[%clk 0:02:55.1]} 16... Bxg3 {[%clk
0:02:02.1]} 17. Ng2 {[%clk 0:02:56]} 17... f4 {[%clk 0:01:59]} 18. Qc2 {[%clk
0:02:33.9]} 18... e5 {[%clk 0:01:58.3]} 19. dxe5 {[%clk 0:02:16.7]} 19... Nxe5
{[%clk 0:01:55.1]} 20. Rd1 {[%clk 0:01:19]} 20... Qh3 {[%clk 0:01:53.4]} 0-1

[Event "*** Titled Tuesday Blitz"]
[Site "Chess.com"]
[Date "2018.06.05"]
[Round "8"]
[White "Robert_Chessmood"]
[Black "Iball95"]
[Result "1-0"]
[WhiteElo "2726"]
[BlackElo "2559"]
[TimeControl "180+2"]
[EndTime "14:52:44 PDT"]
[Termination "Robert_Chessmood won by resignation"]

1. e4 {[%clk 0:03:01.9]} 1... c5 {[%clk 0:02:44.2]} 2. Nf3 {[%clk 0:03:02.2]}
2... Nc6 {[%clk 0:02:45.4]} 3. d4 {[%clk 0:03:03.2]} 3... cxd4 {[%clk
0:02:47.3]} 4. Nxd4 {[%clk 0:03:04.5]} 4... g6 {[%clk 0:02:49.2]} 5. c4 {[%clk
0:03:05.7]} 5... Nf6 {[%clk 0:02:50]} 6. Nc3 {[%clk 0:03:06.1]} 6... d6 {[%clk
0:02:51.3]} 7. Be2 {[%clk 0:03:06.3]} 7... Nxd4 {[%clk 0:02:52.5]} 8. Qxd4
{[%clk 0:03:06.8]} 8... Bg7 {[%clk 0:02:53.8]} 9. Be3 {[%clk 0:03:05.3]} 9...
O-O {[%clk 0:02:53.2]} 10. Qd3 {[%clk 0:03:06.5]} 10... Be6 {[%clk 0:02:51]} 11.
Bd4 {[%clk 0:03:01.1]} 11... Qa5 {[%clk 0:02:47.7]} 12. O-O {[%clk 0:02:59.6]}
12... Rfc8 {[%clk 0:02:47.9]} 13. Nd5 {[%clk 0:02:58.5]} 13... Nxd5 {[%clk
0:02:42.3]} 14. exd5 {[%clk 0:02:59.1]} 14... Bf5 {[%clk 0:02:42.3]} 15. Qe3
{[%clk 0:02:55.9]} 15... Bxd4 {[%clk 0:02:42.2]} 16. Qxd4 {[%clk 0:02:57.8]}
16... Qc5 {[%clk 0:02:38.7]} 17. Qd2 {[%clk 0:02:56.8]} 17... a5 {[%clk
0:02:37.8]} 18. Rfe1 {[%clk 0:02:54.8]} 18... e5 {[%clk 0:02:38.3]} 19. dxe6
{[%clk 0:02:54]} 19... Bxe6 {[%clk 0:02:39]} 20. Rac1 {[%clk 0:02:37.9]} 20...
d5 {[%clk 0:02:39]} 21. cxd5 {[%clk 0:02:35]} 21... Qxd5 {[%clk 0:02:40.9]} 22.
Qxd5 {[%clk 0:02:35.5]} 22... Bxd5 {[%clk 0:02:42.8]} 23. a3 {[%clk 0:02:36.8]}
23... Kg7 {[%clk 0:02:41.8]} 24. f3 {[%clk 0:02:34.5]} 24... Kf6 {[%clk
0:02:34.4]} 25. Kf2 {[%clk 0:02:35.5]} 25... h5 {[%clk 0:02:35.4]} 26. h4 {[%clk
0:02:35.7]} 26... Be6 {[%clk 0:02:20.3]} 27. Ke3 {[%clk 0:02:32.5]} 27... Ke5
{[%clk 0:02:12.8]} 28. Bd3 {[%clk 0:02:31.9]} 28... Rxc1 {[%clk 0:02:10.3]} 29.
Rxc1 {[%clk 0:02:31.7]} 29... Rc8 {[%clk 0:02:12.2]} 30. f4+ {[%clk 0:02:30.8]}
30... Kd6 {[%clk 0:02:10.6]} 31. Rxc8 {[%clk 0:02:31.1]} 31... Bxc8 {[%clk
0:02:12.5]} 32. Kd4 {[%clk 0:02:32.1]} 32... Be6 {[%clk 0:02:08.9]} 33. g3
{[%clk 0:02:27.1]} 33... Bd5 {[%clk 0:02:06.9]} 34. Bb5 {[%clk 0:02:25.5]} 34...
b6 {[%clk 0:02:05.1]} 35. f5 {[%clk 0:02:21.6]} 35... Ba2 {[%clk 0:01:49]} 36.
Bd3 {[%clk 0:02:18.3]} 36... gxf5 {[%clk 0:01:43.1]} 37. Be2 {[%clk 0:02:18.8]}
37... Be6 {[%clk 0:01:45]} 38. Bxh5 {[%clk 0:02:19.2]} 38... f4 {[%clk
0:01:46.7]} 39. gxf4 {[%clk 0:02:19.7]} 1-0

[Event "*** Titled Tuesday Blitz"]
[Site "Chess.com"]
[Date "2018.06.05"]
[Round "8"]
[White "Usurpov"]
[Black "twitchTriniCupid"]
[Result "1-0"]
[WhiteElo "2419"]
[BlackElo "2237"]
[TimeControl "180+2"]
[EndTime "14:52:55 PDT"]
[Termination "Usurpov won by resignation"]

1. e4 {[%clk 0:03:01.9]} 1... c6 {[%clk 0:03:00.2]} 2. d4 {[%clk 0:03:02.9]}
2... d5 {[%clk 0:03:02.1]} 3. Nc3 {[%clk 0:03:04.4]} 3... dxe4 {[%clk
0:03:03.3]} 4. Nxe4 {[%clk 0:03:06.3]} 4... Bf5 {[%clk 0:03:04.9]} 5. Ng3 {[%clk
0:03:07.4]} 5... Bg6 {[%clk 0:03:06.3]} 6. h4 {[%clk 0:03:08.7]} 6... h6 {[%clk
0:03:06.9]} 7. h5 {[%clk 0:03:10.3]} 7... Bh7 {[%clk 0:03:08.3]} 8. Nf3 {[%clk
0:03:11.9]} 8... Nd7 {[%clk 0:03:09.3]} 9. Bd3 {[%clk 0:03:13.3]} 9... Bxd3
{[%clk 0:03:10.8]} 10. Qxd3 {[%clk 0:03:15.2]} 10... e6 {[%clk 0:03:12.7]} 11.
Bd2 {[%clk 0:03:16.7]} 11... Ngf6 {[%clk 0:03:14.2]} 12. O-O-O {[%clk
0:03:16.5]} 12... a5 {[%clk 0:03:14.7]} 13. Ne4 {[%clk 0:03:17.6]} 13... a4
{[%clk 0:03:15.9]} 14. c4 {[%clk 0:03:13.2]} 14... a3 {[%clk 0:03:16.3]} 15. b3
{[%clk 0:03:13.8]} 15... Be7 {[%clk 0:03:15.6]} 16. Bc3 {[%clk 0:03:10.4]} 16...
Nxe4 {[%clk 0:03:04.3]} 17. Qxe4 {[%clk 0:03:12.3]} 17... Nf6 {[%clk 0:03:05.4]}
18. Qe2 {[%clk 0:03:10.8]} 18... O-O {[%clk 0:03:04.9]} 19. Ne5 {[%clk 0:03:11]}
19... Nd7 {[%clk 0:02:53.3]} 20. Nd3 {[%clk 0:02:54.6]} 20... b5 {[%clk
0:02:53.6]} 21. c5 {[%clk 0:02:51.3]} 21... Nf6 {[%clk 0:02:49.8]} 22. Ne5
{[%clk 0:02:52]} 22... Qd5 {[%clk 0:02:50]} 23. f3 {[%clk 0:02:45.8]} 23... Bd8
{[%clk 0:02:32.4]} 24. g4 {[%clk 0:02:44.6]} 24... Ba5 {[%clk 0:02:28.7]} 25.
Bxa5 {[%clk 0:02:24.6]} 25... Rxa5 {[%clk 0:02:28.5]} 26. f4 {[%clk 0:02:20]}
26... Ne4 {[%clk 0:02:19.6]} 27. Qf3 {[%clk 0:02:06.8]} 27... b4 {[%clk
0:02:19.6]} 28. Nc4 {[%clk 0:01:58.7]} 28... Nc3 {[%clk 0:02:17.9]} 29. Qxd5
{[%clk 0:01:45.8]} 29... cxd5 {[%clk 0:01:48.1]} 30. Nxa5 {[%clk 0:01:45.2]}
30... Nxa2+ {[%clk 0:01:45.1]} 31. Kc2 {[%clk 0:01:45.6]} 31... Nc3 {[%clk
0:01:46]} 32. Nc6 {[%clk 0:01:42.2]} 1-0

[Event "*** Titled Tuesday Blitz"]
[Site "Chess.com"]
[Date "2018.06.05"]
[Round "8"]
[White "amiralfio"]
[Black "ChessMavenYeti"]
[Result "0-1"]
[WhiteElo "2252"]
[BlackElo "2148"]
[TimeControl "180+2"]
[EndTime "14:53:04 PDT"]
[Termination "ChessMavenYeti won by resignation"]

1. b4 {[%clk 0:03:01.9]} 1... e5 {[%clk 0:02:59.3]} 2. Bb2 {[%clk 0:03:02.6]}
2... Bxb4 {[%clk 0:02:56.7]} 3. Bxe5 {[%clk 0:03:03.1]} 3... Nf6 {[%clk
0:02:57.3]} 4. Nf3 {[%clk 0:03:00.8]} 4... d5 {[%clk 0:02:48.7]} 5. g3 {[%clk
0:02:57.4]} 5... O-O {[%clk 0:02:46.7]} 6. Bg2 {[%clk 0:02:57.8]} 6... Re8
{[%clk 0:02:45.5]} 7. O-O {[%clk 0:02:57.5]} 7... c6 {[%clk 0:02:38.5]} 8. c4
{[%clk 0:02:51.1]} 8... dxc4 {[%clk 0:02:35.7]} 9. Qc2 {[%clk 0:02:49.6]} 9...
b5 {[%clk 0:02:10]} 10. a4 {[%clk 0:02:46.1]} 10... Nbd7 {[%clk 0:02:02.9]} 11.
Bb2 {[%clk 0:02:35.9]} 11... Bb7 {[%clk 0:01:46.9]} 12. Nd4 {[%clk 0:02:19.1]}
12... Qb6 {[%clk 0:01:09.6]} 13. Na3 {[%clk 0:02:01.8]} 13... a6 {[%clk
0:01:03.1]} 14. Rfb1 {[%clk 0:01:49.4]} 14... c5 {[%clk 0:00:55.9]} 15. Bxb7
{[%clk 0:01:17]} 15... Qxb7 {[%clk 0:00:55.2]} 16. Nf3 {[%clk 0:01:18.1]} 16...
Rxe2 {[%clk 0:00:55.1]} 17. Qd1 {[%clk 0:01:12.2]} 17... Qxf3 {[%clk 0:00:55.2]}
0-1